bitfinex/quotes_BTCUSD_20250127
["timestamp","ask_amount","ask_price","bid_price","bid_amount"]
[1737973650057,0.95459307,99159.0,99158.0,0.00029757]
[1737973650264,0.97347316,99159.0,99158.0,0.00029757]
[1737973650409,0.97247316,99159.0,99158.0,0.00129757]
[1737973651955,0.97247316,99159.0,99158.0,0.00029757]
[1737973652159,0.97347316,99159.0,99158.0,0.00029757]
[1737973652562,0.97247316,99159.0,99158.0,0.00029757]
[1737973652911,0.97347316,99159.0,99158.0,0.00029757]
[1737973653330,0.97247316,99159.0,99158.0,0.00029757]
[1737973653753,0.97347316,99159.0,99158.0,0.00029757]
[1737973658832,0.99647316,99159.0,99158.0,0.00029757]
[1737973660822,1.12237316,99159.0,99158.0,0.00029757]
[1737973662231,1.12137316,99159.0,99158.0,0.00029757]
[1737973662836,1.12237316,99159.0,99158.0,0.00029757]
[1737973664674,1.09937316,99159.0,99158.0,0.00029757]
[1737973664878,1.02267316,99159.0,99158.0,0.00029757]
[1737973668599,0.95459307,99159.0,99158.0,0.00029757]
[1737973668870,0.51093947,99159.0,99158.0,0.00029757]
[1737973669256,0.66221147,99159.0,99158.0,0.00029757]
[1737973670690,0.66121147,99159.0,99158.0,0.00029757]
[1737973670900,0.66221147,99159.0,99158.0,0.00029757]
[1737973671458,0.66121147,99159.0,99158.0,0.00029757]
[1737973671663,0.95359307,99159.0,99158.0,0.00029757]
[1737973671890,0.96457263,99159.0,99158.0,0.00029757]
[1737973673159,0.95459307,99159.0,99158.0,0.00029757]
[1737973673971,0.9734883,99159.0,99158.0,0.00029757]
[1737973675202,0.95459307,99159.0,99158.0,0.00029757]
[1737973676003,1.03369307,99159.0,99158.0,0.00029757]
[1737973676699,0.95459307,99159.0,99158.0,0.00029757]
[1737973677655,0.97349515,99159.0,99158.0,0.00029757]
[1737973680781,0.95459307,99159.0,99158.0,0.00029757]
[1737973681426,1.20044036,99159.0,99158.0,0.00029757]
[1737973683257,1.2495632,99159.0,99158.0,0.00029757]
[1737973683500,1.15221591,99159.0,99158.0,0.00029757]
[1737973683716,1.12921591,99159.0,99158.0,0.00029757]
[1737973683924,1.05341591,99159.0,99158.0,0.00029757]
[1737973684621,1.05241591,99159.0,99158.0,0.00029757]
[1737973684836,1.05241591,99159.0,99158.0,0.00129757]
[1737973685742,1.05341591,99159.0,99158.0,0.00129757]
[1737973686381,1.05341591,99159.0,99158.0,0.00029757]
[1737973686603,1.05341591,99159.0,99158.0,0.00129757]
[1737973687008,1.05341591,99159.0,99158.0,0.00029757]
[1737973687219,1.05241591,99159.0,99158.0,0.00029757]
[1737973687429,1.00271591,99159.0,99158.0,0.00029757]
[1737973687635,1.00371591,99159.0,99158.0,0.00029757]
[1737973688091,1.00271591,99159.0,99158.0,0.00029757]
[1737973688484,0.97348647,99159.0,99158.0,0.00029757]
[1737973689362,0.52983287,99159.0,99158.0,0.00029757]
[1737973689598,0.68110487,99159.0,99158.0,0.00029757]
[1737973690242,0.52983287,99159.0,99158.0,0.00029757]
[1737973690441,0.52983287,99159.0,99158.0,0.00129757]
[1737973690653,0.52883287,99159.0,99158.0,0.00029757]
[1737973690823,0.52883287,99159.0,99158.0,0.15157057]
[1737973691058,0.52883287,99159.0,99158.0,0.00029757]
[1737973691754,0.68010487,99159.0,99158.0,0.00029757]
[1737973691963,0.68110487,99159.0,99158.0,0.00029757]
[1737973692886,0.52983287,99159.0,99158.0,0.00029757]
[1737973693921,0.68110487,99159.0,99158.0,0.00029757]
[1737973695660,0.99648647,99159.0,99158.0,0.00029757]
[1737973695856,1.04168647,99159.0,99158.0,0.00029757]
[1737973698099,1.05198806,99159.0,99158.0,0.00029757]
[1737973698717,0.151307,99136.0,99132.0,0.1493193]
[1737973698926,0.2923816,99157.0,99133.0,0.09734729]
[1737973699241,0.151307,99136.0,99133.0,0.09734729]
[1737973699444,0.655547,99136.0,99133.0,0.09734729]
[1737973699893,0.00551325,99135.0,99133.0,0.09813936]
[1737973700381,0.00551325,99135.0,99134.0,0.15131]
[1737973700807,0.00551325,99135.0,99134.0,0.39865729]
[1737973701019,0.00551325,99135.0,99134.0,0.15]
[1737973701231,0.15131,99134.0,99133.0,0.00079207]
[1737973701437,0.15131,99134.0,99133.0,0.00779207]
[1737973701654,0.15131,99134.0,99133.0,0.00079207]
[1737973701860,0.15677853,99134.0,99133.0,0.00079207]
[1737973703082,0.15677853,99134.0,99133.0,0.00179207]
[1737973703693,0.15677853,99134.0,99133.0,0.00679207]
[1737973704328,0.15677853,99134.0,99133.0,0.00579207]
[1737973704536,0.15677853,99134.0,99133.0,0.00079207]
[1737973704732,0.15677853,99134.0,99133.0,0.00279207]
[1737973705262,0.66101853,99134.0,99133.0,0.00279207]
[1737973706793,0.67991193,99134.0,99133.0,0.00279207]
[1737973707291,0.67991193,99134.0,99133.0,0.00079207]
[1737973707495,0.67991193,99134.0,99133.0,0.00279207]
[1737973709059,0.68091193,99134.0,99133.0,0.00279207]
[1737973709299,0.68091193,99134.0,99133.0,0.00079207]
[1737973711357,0.68191193,99134.0,99133.0,0.00079207]
[1737973712225,0.68091193,99134.0,99133.0,0.00079207]
[1737973713534,0.68191193,99134.0,99133.0,0.00079207]
[1737973714407,0.78561193,99134.0,99133.0,0.00079207]
[1737973715020,0.81577977,99134.0,99133.0,0.00079207]
[1737973715240,0.91312706,99134.0,99133.0,0.00079207]
[1737973715443,0.95892706,99134.0,99133.0,0.00079207]
[1737973716279,1.25130866,99134.0,99133.0,0.00079207]
[1737973716496,1.2714136,99134.0,99133.0,0.00079207]
[1737973716701,1.2704136,99134.0,99133.0,0.00079207]
[1737973716920,1.28031501,99134.0,99133.0,0.00079207]
[1737973717467,1.27931501,99134.0,99133.0,0.00079207]
[1737973719101,1.28031501,99134.0,99133.0,0.00079207]
[1737973721634,0.151327,99123.0,99122.0,0.00029673]
[1737973721845,0.91312945,99123.0,99122.0,0.00029673]
[1737973722050,0.91312945,99123.0,99122.0,7.3e-07]
[1737973722253,1.20551105,99123.0,99122.0,7.3e-07]
[1737973722468,0.151351,99107.0,99071.0,0.00029757]
[1737973722684,0.90523829,99107.0,99071.0,0.00029757]
[1737973723064,0.91045345,99107.0,99071.0,0.00029757]
[1737973724249,0.95944101,99107.0,99106.0,0.00129694]
[1737973724608,0.95944101,99107.0,99106.0,0.00029694]
[1737973726975,0.96044101,99107.0,99106.0,0.00029694]
[1737973727183,0.79335461,99107.0,99106.0,0.00029694]
[1737973727596,0.76326045,99107.0,99106.0,0.00029694]
[1737973728012,0.73019956,99107.0,99106.0,0.00029694]
[1737973738809,0.52934856,99107.0,99106.0,0.00029694]
[1737973739194,0.68069956,99107.0,99106.0,0.00029694]
[1737973739919,0.52834856,99107.0,99106.0,0.00029694]
[1737973740123,0.02304556,99107.0,99106.0,0.15164994]
[1737973740337,0.02304556,99107.0,99106.0,0.24899723]
[1737973740555,0.0188934,99107.0,99106.0,0.39899723]
[1737973740762,0.0188934,99107.0,99106.0,0.24764423]
[1737973741602,0.0188934,99113.0,99107.0,0.15]
[1737973742009,0.00501498,99112.0,99107.0,0.15]
[1737973742428,0.151347,99110.0,99107.0,0.15]
[1737973742600,0.151349,99109.0,99106.0,0.00029694]
[1737973743038,0.00501498,99108.0,99106.0,0.00029694]
[1737973743991,0.151349,99109.0,99106.0,0.00029694]
[1737973744205,0.0188934,99107.0,99106.0,0.00029694]
[1737973744721,0.02390838,99107.0,99106.0,0.00029694]
[1737973746142,0.02390838,99107.0,99106.0,0.15164994]
[1737973746350,0.02390838,99107.0,99106.0,0.00029694]
[1737973746992,0.02405008,99107.0,99106.0,0.00029694]
[1737973747214,0.00515668,99107.0,99106.0,0.00029694]
[1737973747849,0.15650768,99107.0,99106.0,0.00029694]
[1737973748273,0.00515668,99107.0,99106.0,0.00029694]
[1737973750814,0.02398635,99107.0,99106.0,0.00029694]
[1737973751890,0.00515668,99107.0,99106.0,0.00029694]
[1737973752129,0.00515668,99107.0,99106.0,0.15164994]
[1737973752366,0.00515668,99107.0,99106.0,0.15051574]
[1737973752607,0.00515668,99107.0,99106.0,0.47416303]
[1737973752817,0.50964668,99107.0,99106.0,0.47416303]
[1737973754289,0.50964668,99107.0,99106.0,1.71660687]
[1737973754491,0.50964668,99107.0,99106.0,1.0761259]
[1737973754690,0.50964668,99107.0,99106.0,0.9388829]
[1737973754905,0.5046317,99107.0,99106.0,0.95133558]
[1737973755114,0.5046317,99107.0,99106.0,0.9199259]
[1737973755315,0.50969351,99107.0,99106.0,0.8250249]
[1737973755525,0.50969351,99107.0,99106.0,0.7539339]
[1737973755991,0.50969351,99107.0,99106.0,0.7459339]
[1737973756197,0.50969351,99107.0,99106.0,0.7539339]
[1737973756683,0.50969351,99107.0,99106.0,0.7569339]
[1737973757031,0.50969351,99107.0,99106.0,0.7489339]
[1737973757230,0.50969351,99107.0,99106.0,0.7659339]
[1737973757564,0.50969351,99107.0,99106.0,0.7689339]
[1737973757771,0.50969351,99107.0,99106.0,1.0893339]
[1737973759020,0.50969351,99107.0,99106.0,1.0983339]
[1737973759228,0.50969351,99107.0,99106.0,1.09863147]
[1737973760042,0.44915351,99107.0,99106.0,1.12163147]
[1737973760259,0.34340322,99107.0,99106.0,1.12163147]
[1737973760462,0.32322322,99107.0,99106.0,1.12163147]
[1737973761052,0.19060747,99107.0,99106.0,1.12163147]
[1737973761257,0.13007047,99107.0,99106.0,1.12163147]
[1737973761415,0.10482966,99107.0,99106.0,1.12163147]
[1737973762070,0.06446966,99107.0,99106.0,1.12163147]
[1737973762234,0.00393066,99107.0,99106.0,1.12163147]
[1737973762436,0.00393066,99107.0,99106.0,1.11263147]
[1737973762641,0.00393066,99107.0,99106.0,1.12163147]
[1737973763041,0.00393066,99107.0,99106.0,1.10963147]
[1737973763242,3.6e-07,99115.0,99114.0,0.03]
[1737973763513,3.6e-07,99115.0,99114.0,0.55119579]
[1737973763722,3.6e-07,99115.0,99114.0,0.55018729]
[1737973763897,3.6e-07,99115.0,99114.0,0.87058729]
[1737973764277,3.6e-07,99115.0,99114.0,0.85058729]
[1737973764489,3.6e-07,99115.0,99114.0,0.87058729]
[1737973765282,3.6e-07,99115.0,99114.0,0.87958729]
[1737973765484,0.0457,99154.0,99133.0,0.01]
[1737973765802,0.0457,99154.0,99133.0,0.80610029]
[1737973766020,0.0457,99154.0,99133.0,1.12308929]
[1737973766552,0.0457,99154.0,99133.0,1.01835929]
[1737973766765,0.0457,99154.0,99133.0,1.04856037]
[1737973766983,0.0457,99154.0,99133.0,0.43685937]
[1737973767202,0.0457,99154.0,99133.0,0.56797537]
[1737973767405,0.0457,99154.0,99133.0,0.56997537]
[1737973768057,0.0457,99154.0,99133.0,0.56797537]
[1737973768277,0.0457,99154.0,99133.0,0.57097537]
[1737973768698,0.0457,99154.0,99133.0,0.56297537]
[1737973768897,0.0457,99154.0,99133.0,0.57097537]
[1737973769102,0.0457,99154.0,99133.0,0.56297537]
[1737973769507,0.0457,99154.0,99133.0,0.57197537]
[1737973770549,0.0001417,99159.0,99133.0,0.57197537]
[1737973771141,0.03350899,99164.0,99163.0,0.151266]
[1737973771364,0.01393855,99164.0,99163.0,0.24861329]
[1737973771562,0.01925371,99164.0,99163.0,0.24861329]
[1737973771900,0.01393855,99164.0,99163.0,0.24861329]
[1737973772130,0.01393855,99164.0,99163.0,0.09734729]
[1737973773068,0.01393855,99164.0,99163.0,0.24861329]
[1737973773423,0.01493855,99164.0,99163.0,0.24861329]
[1737973774225,0.01393855,99164.0,99163.0,0.24861329]
[1737973776236,0.01393855,99164.0,99163.0,0.24961329]
[1737973777120,0.01393855,99164.0,99163.0,0.39961329]
[1737973777841,0.51815855,99164.0,99163.0,0.39961329]
[1737973778246,0.52352442,99164.0,99163.0,0.39961329]
[1737973779667,0.52352442,99164.0,99163.0,0.24834729]
[1737973779876,0.67478842,99164.0,99163.0,0.001]
[1737973780683,0.52352442,99164.0,99163.0,0.001]
[1737973781086,0.67478842,99164.0,99163.0,0.001]
[1737973782081,0.67478842,99164.0,99163.0,0.00129736]
[1737973782268,0.67478842,99164.0,99163.0,0.00029736]
[1737973782269,0.72386158,99164.0,99163.0,0.00029736]
[1737973782945,0.80166158,99164.0,99163.0,0.00029736]
[1737973783736,0.80066158,99164.0,99163.0,0.00029736]
[1737973783944,0.80166158,99164.0,99163.0,0.00029736]
[1737973785724,0.82466158,99164.0,99163.0,0.00029736]
[1737973786480,0.80166158,99164.0,99163.0,0.00029736]
[1737973790116,1.21439047,99164.0,99163.0,0.00029736]
[1737973790322,1.21198532,99164.0,99163.0,0.00029736]
[1737973791846,1.21098532,99164.0,99163.0,0.00029736]
[1737973792239,1.21198532,99164.0,99163.0,0.00029736]
[1737973793434,1.18187359,99164.0,99163.0,0.00029736]
[1737973794237,0.151326,99124.0,99111.0,0.201793]
[1737973794460,0.126,99123.0,99117.0,0.00049279]
[1737973794684,0.63549744,99123.0,99118.0,0.24868129]
[1737973794898,0.63549744,99123.0,99118.0,0.09734729]
[1737973795104,0.63549744,99123.0,99117.0,0.00049279]
[1737973795105,0.151331,99121.0,99117.0,0.00049279]
[1737973795288,0.65555,99121.0,99117.0,0.00049279]
[1737973795547,0.00517776,99120.0,99117.0,0.00049279]
[1737973795757,0.52823984,99120.0,99117.0,0.00049279]
[1737973796088,0.67957084,99120.0,99117.0,0.00049279]
[1737973796682,0.50939776,99120.0,99117.0,0.00049279]
[1737973796831,0.50939776,99120.0,99117.0,0.00149279]
[1737973797046,0.50939776,99120.0,99117.0,0.00649279]
[1737973797285,0.50939776,99120.0,99117.0,0.15782779]
[1737973797480,0.50939776,99120.0,99117.0,0.00649279]
[1737973797930,0.50939776,99120.0,99119.0,0.151333]
[1737973798110,0.50939776,99120.0,99119.0,0.24868029]
[1737973798252,0.50422,99120.0,99119.0,0.24868029]
[1737973798664,0.50936867,99120.0,99119.0,0.24868029]
[1737973799253,0.50936867,99120.0,99119.0,0.09734729]
[1737973799459,0.50936867,99120.0,99117.0,0.00049279]
[1737973799667,0.66070067,99120.0,99119.0,0.004]
[1737973799899,0.50936867,99120.0,99119.0,0.001]
[1737973800286,0.66069967,99120.0,99119.0,0.004]
[1737973800546,0.151334,99118.0,99117.0,0.00049279]
[1737973800757,0.732654,99118.0,99117.0,0.00049279]
[1737973800965,0.781654,99118.0,99117.0,0.00349279]
[1737973801169,0.781654,99118.0,99117.0,0.00049279]
[1737973802042,1.0740356,99118.0,99117.0,0.00049279]
[1737973802653,1.09282374,99118.0,99117.0,0.00049279]
[1737973802870,1.12288477,99118.0,99117.0,0.00049279]
[1737973803742,1.39323206,99118.0,99117.0,0.00049279]
[1737973804388,1.39323206,99118.0,99117.0,0.00149279]
[1737973804599,1.12288477,99118.0,99117.0,0.00149279]
[1737973805499,0.97155077,99118.0,99086.0,0.201842]
[1737973805705,0.151372,99094.0,99087.0,0.09734729]
[1737973805919,0.15138,99089.0,99087.0,0.09734729]
[1737973806139,0.6556,99089.0,99087.0,0.09734729]
[1737973806355,0.50422,99089.0,99087.0,0.09734729]
[1737973806991,0.50422,99089.0,99086.0,0.00014829]
[1737973807193,0.6556,99089.0,99086.0,0.00014829]
[1737973807422,0.6556,99089.0,99087.0,0.004]
[1737973807846,0.50422,99089.0,99088.0,0.09734729]
[1737973808094,0.50422,99089.0,99088.0,0.39872729]
[1737973808316,0.50422,99089.0,99088.0,0.48802729]
[1737973808528,0.50422,99089.0,99088.0,0.73429129]
[1737973809147,0.50422,99089.0,99088.0,0.75729129]
[1737973809370,0.2923816,99148.0,99088.0,0.75729129]
[1737973809371,0.0485,99151.0,99119.0,0.384333]
[1737973809576,0.0485,99151.0,99119.0,0.75508929]
[1737973809789,0.0485,99151.0,99119.0,0.66268929]
[1737973810011,0.14226867,99120.0,99119.0,0.63863529]
[1737973810237,0.14226867,99120.0,99119.0,0.39868029]
[1737973810893,0.14226867,99120.0,99119.0,0.39882858]
[1737973811092,0.14226867,99120.0,99119.0,0.40582858]
[1737973812172,0.14226867,99120.0,99119.0,0.41573292]
[1737973812631,0.14226867,99120.0,99119.0,0.88052192]
[1737973812842,0.14226867,99120.0,99119.0,0.90352192]
[1737973813056,0.14226867,99120.0,99119.0,0.90552192]
[1737973814350,0.14226867,99120.0,99119.0,1.22592192]
[1737973815415,0.14226867,99120.0,99119.0,1.29072192]
[1737973816262,0.14226867,99120.0,99119.0,1.28872192]
[1737973816483,0.14226867,99120.0,99119.0,1.28172192]
[1737973816703,0.14226867,99120.0,99119.0,1.29372192]
[1737973817133,0.14226867,99120.0,99119.0,1.28172192]
[1737973817338,0.14226867,99120.0,99119.0,1.29072192]
[1737973817767,0.13712,99120.0,99119.0,1.29072192]
[1737973819212,0.13712,99120.0,99119.0,1.29372192]
[1737973821222,0.13712,99120.0,99119.0,0.91453292]
[1737973821466,0.13712,99120.0,99119.0,2.02568892]
[1737973821646,0.13712,99120.0,99119.0,0.85881292]
[1737973821821,0.13712,99120.0,99119.0,1.03497692]
[1737973822225,0.13712,99120.0,99119.0,1.05797692]
[1737973823079,0.13712,99120.0,99119.0,1.04620592]
[1737973823846,0.1047419,99120.0,99119.0,1.04620592]
[1737973826543,0.1047419,99120.0,99119.0,1.32266192]
[1737973826747,0.1047419,99120.0,99119.0,1.14483792]
[1737973827362,0.1047419,99120.0,99119.0,1.13275792]
[1737973827566,0.1047419,99120.0,99119.0,1.14491792]
[1737973829247,0.1047419,99120.0,99119.0,1.15648132]
[1737973829452,0.0733619,99120.0,99119.0,1.15648132]
[1737973829836,0.0733619,99120.0,99119.0,1.14648132]
[1737973830037,0.0733619,99120.0,99119.0,1.15648132]
[1737973830445,0.0330059,99120.0,99119.0,1.15648132]
[1737973830655,0.0128279,99120.0,99119.0,1.15648132]
[1737973831122,9e-07,99120.0,99119.0,1.15648132]
[1737973831308,0.0802,99151.0,99150.0,0.151285]
[1737973831506,0.076,99162.0,99150.0,0.09734729]
[1737973831687,0.076,99162.0,99160.0,0.15127]
[1737973831903,0.076,99162.0,99161.0,0.09734729]
[1737973832493,0.07649309,99162.0,99161.0,0.09734729]
[1737973832891,0.08,99154.0,99130.0,0.15871323]
[1737973833094,0.08,99154.0,99151.0,0.151283]
[1737973833304,0.08,99154.0,99152.0,0.24862929]
[1737973833921,0.08,99154.0,99152.0,0.09734729]
[1737973834669,0.081,99154.0,99152.0,0.09734729]
[1737973836074,0.081,99154.0,99152.0,0.24862929]
[1737973836296,0.08,99154.0,99153.0,0.151281]
[1737973836546,0.0499,99159.0,99158.0,0.151273]
[1737973836679,0.0499,99159.0,99158.0,0.09734729]
[1737973837453,0.0499,99159.0,99158.0,0.24862029]
[1737973837836,0.0499,99159.0,99158.0,0.24962029]
[1737973838248,0.0499,99159.0,99158.0,0.24862029]
[1737973838408,0.06876333,99159.0,99158.0,0.24862029]
[1737973839379,0.06976333,99159.0,99158.0,0.25062029]
[1737973839788,0.0499,99159.0,99158.0,0.25062029]
[1737973840223,0.0499,99159.0,99158.0,0.09934729]
[1737973841254,0.0499,99159.0,99158.0,0.24862029]
[1737973841459,0.0499,99159.0,99156.0,0.151275]
[1737973841664,0.0499,99159.0,99158.0,0.002]
[1737973842090,0.0499,99159.0,99157.0,0.09734729]
[1737973842508,0.0499,99159.0,99158.0,0.001]
[1737973842710,0.06878807,99159.0,99158.0,0.001]
[1737973843330,0.06878807,99159.0,99157.0,0.09734729]
[1737973844115,0.01888807,99158.0,99157.0,0.09734729]
[1737973844329,0.01888807,99158.0,99157.0,0.24862229]
[1737973844738,0.01888807,99158.0,99157.0,0.09734729]
[1737973844918,0.01888807,99158.0,99157.0,0.09834729]
[1737973845317,0.01888807,99158.0,99157.0,0.09734729]
[1737973845700,0.01888807,99158.0,99157.0,0.09834729]
[1737973849327,0.01888807,99158.0,99157.0,0.24962229]
[1737973851039,0.01888807,99158.0,99157.0,0.09834729]
[1737973851485,0.01888807,99158.0,99157.0,0.09734729]
[1737973851901,0.17016107,99158.0,99157.0,0.002]
[1737973852063,0.25236107,99158.0,99157.0,0.002]
[1737973852267,0.30206107,99158.0,99157.0,0.002]
[1737973852700,0.33230744,99158.0,99157.0,0.002]
[1737973853098,0.2017,99157.0,99143.0,0.151296]
[1737973853349,0.1241,99146.0,99141.0,0.15]
[1737973853523,0.151297,99143.0,99132.0,0.01172]
[1737973853725,0.15131,99134.0,99133.0,0.12881993]
[1737973853925,0.23001,99134.0,99133.0,0.09734729]
[1737973854132,0.0454,99133.0,99120.0,0.00029736]
[1737973854357,0.0454,99133.0,99121.0,0.09734729]
[1737973854526,0.151323,99126.0,99121.0,0.09734729]
[1737973854884,0.151326,99124.0,99121.0,0.09734729]
[1737973855100,0.15133,99121.0,99120.0,0.00029736]
[1737973855316,0.28003,99121.0,99120.0,0.00029736]
[1737973855547,0.1287,99121.0,99120.0,0.00029736]
[1737973855756,0.1287895,99121.0,99120.0,0.00029736]
[1737973856592,0.14767757,99121.0,99120.0,0.00029736]
[1737973857016,0.14767757,99121.0,99120.0,0.15162836]
[1737973857236,0.14767757,99121.0,99120.0,0.40697565]
[1737973857237,0.01897757,99121.0,99120.0,0.40697565]
[1737973857885,0.01897757,99121.0,99120.0,1.26087765]
[1737973858124,0.00617814,99121.0,99120.0,1.79158568]
[1737973858337,0.047,99161.0,99157.0,0.301275]
[1737973858553,0.00079162,99158.0,99157.0,0.39862229]
[1737973859682,0.00079162,99158.0,99155.0,0.151278]
[1737973859891,0.00079162,99158.0,99154.0,0.00983466]
[1737973860096,0.00079162,99158.0,99155.0,0.15]
[1737973860301,0.00179162,99158.0,99155.0,0.15]
[1737973860513,0.00179162,99158.0,99156.0,0.151276]
[1737973860710,0.00179162,99158.0,99155.0,0.15]
[1737973860925,0.0826,99157.0,99130.0,0.14871323]
[1737973861144,0.201726,99144.0,99138.0,0.09734729]
[1737973861367,0.1513,99141.0,99138.0,0.09734729]
[1737973861571,0.151303,99139.0,99126.0,0.15]
[1737973861781,0.151299,99142.0,99134.0,0.15]
[1737973861996,0.151303,99139.0,99134.0,0.24734729]
[1737973862207,0.151298,99142.0,99137.0,0.15]
[1737973862637,0.151298,99142.0,99138.0,0.005]
[1737973862845,0.151298,99142.0,99137.0,0.15]
[1737973863047,0.1242,99143.0,99137.0,0.152304]
[1737973863700,0.151303,99139.0,99136.0,0.15]
[1737973863916,0.151299,99142.0,99136.0,0.15]
[1737973864228,0.151299,99142.0,99138.0,0.001]
[1737973864660,0.151299,99142.0,99136.0,0.15]
[1737973865064,0.1242,99143.0,99139.0,0.15]
[1737973865491,0.275497,99143.0,99139.0,0.15]
[1737973865693,0.1242,99143.0,99139.0,0.15]
[1737973865898,0.151301,99140.0,99139.0,0.15]
[1737973866106,0.151298,99142.0,99139.0,0.15]
[1737973866750,0.1242,99143.0,99135.0,0.15]
[1737973866953,0.20173,99142.0,99135.0,0.15]
[1737973867159,0.151302,99140.0,99135.0,0.15]
[1737973867597,0.151303,99139.0,99135.0,0.15]
[1737973867805,0.001,99142.0,99135.0,0.301307]
[1737973868009,0.151298,99142.0,99135.0,0.301307]
[1737973868837,0.12449736,99143.0,99139.0,0.151301]
[1737973869769,0.151299,99142.0,99135.0,0.151]
[1737973869973,0.12449736,99143.0,99135.0,0.15]
[1737973870190,0.201737,99139.0,99134.0,0.09734729]
[1737973870375,0.151305,99137.0,99134.0,0.09734729]
[1737973870572,0.151302,99140.0,99134.0,0.09734729]
[1737973870800,0.151303,99139.0,99134.0,0.09734729]
[1737973871016,0.201732,99141.0,99134.0,0.09734729]
[1737973871236,0.151303,99139.0,99134.0,0.09734729]
[1737973871475,0.12449736,99143.0,99135.0,0.09734729]
[1737973871677,0.00029736,99143.0,99142.0,0.151298]
[1737973871884,0.00029736,99143.0,99142.0,0.24864529]
[1737973872314,0.00029736,99143.0,99131.0,0.15]
[1737973872534,0.1513,99141.0,99134.0,0.151309]
[1737973872752,0.00029736,99143.0,99135.0,0.09734729]
[1737973872960,0.00029736,99143.0,99140.0,0.1513]
[1737973873392,0.00029736,99143.0,99142.0,0.005]
[1737973873393,0.15159336,99143.0,99142.0,0.005]
[1737973873613,0.00029736,99143.0,99142.0,0.005]
[1737973873822,0.00029736,99143.0,99139.0,0.151301]
[1737973874079,0.00029736,99143.0,99135.0,0.09734729]
[1737973874283,0.00029736,99143.0,99135.0,0.09834729]
[1737973874489,0.151301,99141.0,99135.0,0.09734729]
[1737973874706,0.151305,99137.0,99135.0,0.09734729]
[1737973874898,0.151301,99141.0,99131.0,0.15]
[1737973875147,0.00129736,99143.0,99134.0,0.151309]
[1737973875353,0.00129736,99143.0,99134.0,0.09734729]
[1737973875354,0.151302,99140.0,99134.0,0.09734729]
[1737973875540,0.20173,99142.0,99134.0,0.09734729]
[1737973875751,0.151304,99138.0,99134.0,0.09734729]
[1737973875980,0.124,99142.0,99121.0,0.0001416]
[1737973876193,0.0763,99124.0,99122.0,0.09734729]
[1737973876630,0.0763,99124.0,99123.0,0.301327]
[1737973877469,0.0763,99124.0,99123.0,0.30147529]
[1737973877678,0.0763,99124.0,99123.0,0.15014829]
[1737973877952,0.0763,99124.0,99123.0,0.30147529]
[1737973878180,0.0763,99124.0,99123.0,0.00014829]
[1737973878396,0.0763,99124.0,99123.0,0.00114829]
[1737973878625,0.227625,99124.0,99123.0,0.00114829]
[1737973879064,0.0763,99124.0,99123.0,0.00114829]
[1737973879282,0.0763,99124.0,99123.0,0.00614829]
[1737973879801,0.0763,99124.0,99123.0,0.00014829]
[1737973880014,0.0763,99124.0,99123.0,0.00414829]
[1737973880200,0.227625,99124.0,99123.0,0.00514829]
[1737973880395,0.0763,99124.0,99123.0,0.00514829]
[1737973881432,0.277425,99124.0,99123.0,0.00514829]
[1737973882661,0.0803,99131.0,99123.0,0.10249558]
[1737973882821,0.0803,99131.0,99124.0,0.29911429]
[1737973883016,0.0803,99131.0,99124.0,0.09734729]
[1737973883226,0.0803,99131.0,99125.0,0.201765]
[1737973883434,0.0803,99131.0,99126.0,0.24866929]
[1737973883884,0.0803,99131.0,99123.0,0.00114829]
[1737973884170,0.40349,99135.0,99123.0,0.00114829]
[1737973884171,0.227225,99124.0,99123.0,0.00114829]
[1737973884391,0.273225,99124.0,99123.0,0.00114829]
[1737973884543,0.29205978,99124.0,99123.0,0.00014829]
[1737973886557,0.29405978,99124.0,99123.0,0.00014829]
[1737973886820,0.32417156,99124.0,99123.0,0.00014829]
[1737973887223,0.32217156,99124.0,99123.0,0.00014829]
[1737973887420,0.32317156,99124.0,99123.0,0.00014829]
[1737973887829,0.33309022,99124.0,99123.0,0.00014829]
[1737973888033,0.32317156,99124.0,99123.0,0.00014829]
[1737973888678,0.71290045,99124.0,99123.0,0.00014829]
[1737973888880,0.73590045,99124.0,99123.0,0.00014829]
[1737973889959,0.151328,99122.0,99121.0,0.0001416]
[1737973890166,0.39567529,99122.0,99121.0,0.0001416]
[1737973890368,0.39567529,99122.0,99078.0,0.00029757]
[1737973890369,0.324334,99118.0,99117.0,5e-07]
[1737973890595,0.151377,99090.0,99078.0,0.00029757]
[1737973890797,0.275377,99090.0,99078.0,0.00029757]
[1737973891001,0.275377,99090.0,99089.0,0.00038707]
[1737973891959,0.29421178,99090.0,99089.0,0.00138707]
[1737973892386,0.30440011,99090.0,99089.0,0.00138707]
[1737973894354,0.4247474,99090.0,99089.0,0.00138707]
[1737973894706,0.4247474,99090.0,99089.0,0.00038707]
[1737973895115,0.29421178,99090.0,99089.0,0.00038707]
[1737973895319,0.29421178,99090.0,99089.0,0.00138707]
[1737973895517,0.29421178,99090.0,99089.0,0.00038707]
[1737973895518,0.39155907,99090.0,99089.0,0.00038707]
[1737973895757,0.42155097,99090.0,99089.0,0.00038707]
[1737973895973,0.42255097,99090.0,99089.0,0.00038707]
[1737973896387,0.44555097,99090.0,99089.0,0.00038707]
[1737973896592,0.42255097,99090.0,99089.0,0.00038707]
[1737973897242,0.42155097,99090.0,99089.0,0.00038707]
[1737973897601,0.42355097,99090.0,99089.0,0.00038707]
[1737973900027,0.40483598,99090.0,99089.0,0.00038707]
[1737973900228,0.40683598,99090.0,99089.0,0.00038707]
[1737973900574,0.69921758,99090.0,99089.0,0.00038707]
[1737973900785,0.69721758,99090.0,99089.0,0.00038707]
[1737973900958,0.70021758,99090.0,99089.0,0.00038707]
[1737973902372,0.67022568,99090.0,99089.0,0.00038707]
[1737973903193,0.66722568,99090.0,99089.0,0.00038707]
[1737973903416,0.67022568,99090.0,99089.0,0.00038707]
[1737973905283,0.70018987,99090.0,99089.0,0.00038707]
[1737973906717,0.87106803,99090.0,99089.0,0.00038707]
[1737973907068,0.85018987,99090.0,99089.0,0.00038707]
[1737973907470,0.85018987,99090.0,99089.0,7e-08]
[1737973907670,0.91037555,99090.0,99089.0,7e-08]
[1737973908220,0.92037555,99090.0,99089.0,7e-08]
[1737973909343,0.98095555,99090.0,99089.0,7e-08]
[1737973910669,1.10130284,99090.0,99089.0,7e-08]
[1737973910866,1.12130284,99090.0,99089.0,7e-08]
[1737973911090,0.01,99081.0,99078.0,0.00029757]
[1737973911294,0.426594,99079.0,99078.0,0.00041704]
[1737973911499,0.90990289,99079.0,99078.0,4e-08]
[1737973911702,0.1232,99073.0,99063.0,0.00029715]
[1737973911853,0.53195229,99072.0,99071.0,0.00044586]